fUSD/lending_fUSD_20250513
["ID","MTS","AMOUNT","RATE_DAILY","PERIOD"]
[360946064,1747159891180,-400.0,0.00012602,2]
[360946065,1747159891190,-722.75,0.00012602,2]
[360946066,1747159891201,-837.08,0.00012602,2]
[360946067,1747159891212,-418.45,0.00012602,2]
[360946068,1747159891222,-400.0,0.00012602,2]
[360946069,1747159891236,-1518.61,0.00012602,2]
[360946070,1747159891457,-538.57,0.00012602,2]
[360946071,1747159891469,-2035.72,0.00012602,2]
[360946072,1747159891480,-452.37,0.00012602,2]
[360946073,1747159891490,-400.0,0.00012602,2]
[360946074,1747159891500,-504.22,0.00012602,2]
[360946075,1747159891510,-699.02,0.00012602,2]
[360946076,1747159891520,-1636.63,0.00012602,2]
[360946077,1747159891530,-279.45,0.00012602,2]
[360946078,1747159891540,-494.98,0.00012602,2]
[360946079,1747159891549,-1883.29,0.00012602,2]
[360946080,1747159891559,-610.23,0.00012602,2]
[360946081,1747159891569,-768.25,0.00012602,2]
[360946082,1747159891579,-768.75,0.00012602,2]
[360946083,1747159891589,-1014.11,0.00012602,2]
[360946084,1747159891599,-620.02,0.00012602,2]
[360946085,1747159891609,-1271.95,0.00012602,2]
[360946086,1747159891619,-400.0,0.00012602,2]
[360946087,1747159891630,-400.0,0.00012602,2]
[360946088,1747159891640,-756.59,0.00012602,2]
[360946089,1747159891650,-156.319889,0.00012602,2]
[360946090,1747159891659,-400.0,0.00012602,2]
[360946091,1747159891669,-400.0,0.00012602,2]
[360946092,1747159891679,-935.97,0.00012602,2]
[360946093,1747159891689,-1412.1,0.00012602,2]
[360946094,1747159891699,-539.94,0.00012602,2]
[360946095,1747159891709,-1632.7,0.00012602,2]
[360946096,1747159891720,-400.0,0.00012602,2]
[360946097,1747159891730,-871.79,0.00012602,2]
[360946098,1747159891742,-451.47,0.00012602,2]
[360946099,1747159891752,-400.0,0.00012602,2]
[360946100,1747159891762,-560.27,0.00012602,2]
[360946101,1747159891772,-400.0,0.00012602,2]
[360946102,1747159891782,-2068.68,0.00012602,2]
[360946103,1747159891792,-570.27,0.00012602,2]
[360946104,1747159891802,-295.47500337,0.00012602,2]
[360946105,1747159891812,-967.47,0.00012602,2]
[360946106,1747159891822,-400.0,0.00012602,2]
[360946107,1747159891831,-669.93,0.00012602,2]
[360946108,1747159891842,-1036.32,0.00012602,2]
[360946109,1747159891852,-444.85,0.00012602,2]
[360946110,1747159891862,-400.0,0.00012602,2]
[360946111,1747159891871,-680.61,0.00012602,2]
[360946112,1747159891881,-4665.34,0.00012602,2]
[360946113,1747159891890,-400.0,0.00012602,2]
[360946114,1747159891900,-1314.16,0.00012602,2]
[360946115,1747159891910,-4183.88,0.00012602,2]
[360946116,1747159891920,-400.0,0.00012602,2]
[360946117,1747159891930,-547.25,0.00012602,2]
[360946118,1747159891940,-400.0,0.00012602,2]
[360946119,1747159891950,-579.54,0.00012602,2]
[360946120,1747159891959,-786.38,0.00012602,2]
[360946121,1747159891968,-2046.23,0.00012602,2]
[360946122,1747159891978,-1255.33,0.00012602,2]
[360946123,1747159891987,-577.34,0.00012602,2]
[360946124,1747159891997,-9519.31,0.00012602,2]
[360946125,1747159892006,-834.73,0.00012602,2]
[360946126,1747159892016,-400.0,0.00012602,2]
[360946127,1747159892026,-1346.7,0.00012602,2]
[360946128,1747159892035,-400.0,0.00012602,2]
[360946129,1747159892045,-2754.3,0.00012602,2]
[360946130,1747159892055,-10256.28,0.00012602,2]
[360946131,1747159892064,-400.0,0.00012602,2]
[360946132,1747159892074,-487.25,0.00012602,2]
[360946133,1747159892084,-400.0,0.00012602,2]
[360946134,1747159892093,-400.0,0.00012602,2]
[360946135,1747159892103,-2145.85,0.00012602,2]
[360946136,1747159892113,-778.75,0.00012602,2]
[360946137,1747159892123,-1086.29,0.00012602,2]
[360946138,1747159892133,-712.61,0.00012602,2]
[360946139,1747159892143,-400.0,0.00012602,2]
[360946140,1747159892153,-1146.85,0.00012602,2]
[360946141,1747159892165,-400.0,0.00012602,2]
[360946142,1747159892174,-427.04,0.00012602,2]
[360946143,1747159892183,-1787.73,0.00012602,2]
[360946144,1747159892193,-587.09,0.00012602,2]
[360946145,1747159892202,-151.0,0.00012602,2]
[360946146,1747159892212,-400.0,0.00012602,2]
[360946147,1747159892222,-2676.84,0.00012602,2]
[360946148,1747159892233,-936.8,0.00012602,2]
[360946149,1747159892244,-538.65,0.00012602,2]
[360946150,1747159892255,-570.54,0.00012602,2]
[360946151,1747159892265,-671.91,0.00012602,2]
[360946152,1747159892274,-400.0,0.00012602,2]
[360946153,1747159892284,-1004.59,0.00012602,2]
[360946154,1747159892294,-212.087228,0.00012602,2]
[360946155,1747159892303,-583.74,0.00012602,2]
[360946156,1747159892313,-400.0,0.00012602,2]
[360946157,1747159892322,-628.15,0.00012602,2]
[360946158,1747159892331,-212.087228,0.00012602,2]
[360946159,1747159892341,-409.42,0.00012602,2]
[360946160,1747159892351,-436.86307172,0.00012602,2]
[360946161,1747159892361,-10626.02,0.00012602,2]
[360946162,1747159892370,-400.0,0.00012602,2]
[360946163,1747159892380,-515.12,0.00012602,2]
[360946164,1747159892390,-6049.69,0.00012602,2]
[360946165,1747159892399,-1033.11,0.00012602,2]
[360946166,1747159892408,-400.0,0.00012602,2]
[360946167,1747159892418,-437.19,0.00012602,2]
[360946168,1747159892427,-569.55,0.00012602,2]
[360946169,1747159892437,-467.47,0.00012602,2]
[360946170,1747159892446,-2264.96,0.00012602,2]
[360946171,1747159892455,-795.31,0.00012602,2]
[360946172,1747159892465,-405.13,0.00012602,2]
[360946173,1747159892476,-1277.12,0.00012602,2]
[360946174,1747159892486,-400.0,0.00012602,2]
[360946175,1747159892495,-400.0,0.00012602,2]
[360946176,1747159892505,-10483.18,0.00012602,2]
[360946177,1747159892515,-400.0,0.00012602,2]
[360946178,1747159892524,-1585.22,0.00012602,2]
[360946179,1747159892534,-843.23,0.00012602,2]
[360946180,1747159892544,-1106.58,0.00012602,2]
[360946181,1747159892554,-400.0,0.00012602,2]
[360946182,1747159892564,-413.28,0.00012602,2]
[360946183,1747159892574,-400.0,0.00012602,2]
[360946184,1747159892583,-1973.13,0.00012602,2]
[360946185,1747159892592,-400.0,0.00012602,2]
[360946186,1747159892602,-400.0,0.00012602,2]
[360946187,1747159892612,-565.33,0.00012602,2]
[360946188,1747159892621,-1087.57,0.00012602,2]
[360946189,1747159892631,-2020.68,0.00012602,2]
[360946190,1747159892640,-400.0,0.00012602,2]
[360946191,1747159892650,-417.07999957,0.00012602,2]
[360946192,1747159892660,-686.06,0.00012602,2]
[360946193,1747159892669,-400.0,0.00012602,2]
[360946194,1747159892679,-400.0,0.00012602,2]
[360946195,1747159892688,-400.0,0.00012602,2]
[360946196,1747159892698,-2493.43,0.00012602,2]
[360946197,1747159892707,-483.53,0.00012602,2]
[360946198,1747159892717,-400.0,0.00012602,2]
[360946199,1747159892728,-400.0,0.00012602,2]
[360946200,1747159892738,-523.64,0.00012602,2]
[360946201,1747159892748,-2179.19,0.00012602,2]
[360946202,1747159892758,-933.31,0.00012602,2]
[360946203,1747159892767,-1454.44,0.00012602,2]
[360946204,1747159892777,-495.63,0.00012602,2]
[360946205,1747159892787,-448.16,0.00012602,2]
[360946206,1747159892797,-669.67,0.00012602,2]
[360946207,1747159892807,-407.59,0.00012602,2]
[360946208,1747159892816,-2557.8,0.00012602,2]
[360946209,1747159892825,-733.19,0.00012602,2]
[360946210,1747159892835,-1323.75,0.00012602,2]
[360946211,1747159892845,-1387.03,0.00012602,2]
[360946212,1747159892854,-639.94,0.00012602,2]
[360946213,1747159892864,-1956.5,0.00012602,2]
[360946214,1747159892873,-400.0,0.00012602,2]
[360946215,1747159892883,-101544.96,0.00012602,2]
[360946216,1747159892893,-400.0,0.00012602,2]
[360946217,1747159892903,-447.02,0.00012602,2]
[360946218,1747159892912,-400.0,0.00012602,2]
[360946219,1747159892923,-400.0,0.00012602,2]
[360946220,1747159892933,-2181.62,0.00012602,2]
[360946221,1747159892942,-707.87,0.00012602,2]
[360946222,1747159892952,-946.15,0.00012602,2]
[360946223,1747159892962,-809.14,0.00012602,2]
[360946224,1747159892972,-676.8,0.00012602,2]
[360946225,1747159892986,-492.65,0.00012602,2]
[360946226,1747159892997,-637.14,0.00012602,2]
[360946227,1747159893007,-1000.0,0.00012616,2]
[360946228,1747159893017,-151.0,0.00012635,2]
[360946229,1747159893027,-151.0,0.00012637,2]
[360946230,1747159893037,-151.0,0.00012637,2]
[360946231,1747159893047,-3380.65519,0.00012637,2]
[360946232,1747159893057,-3380.65519,0.00012637,2]
[360946233,1747159893067,-649.911468,0.00012637,2]
[360946234,1747159893078,-649.911468,0.00012637,2]
[360946235,1747159893088,-151.0,0.00012637,2]
[360946236,1747159893098,-4071.95,0.00012637,2]
[360946237,1747159893108,-206.796298,0.0001269,2]
[360946238,1747159893119,-183.910422,0.0001269,2]
[360946239,1747159893130,-200.0,0.0001271,2]
[360946240,1747159893141,-1925.62,0.00012731,2]
[360946241,1747159893151,-1075.0,0.00012743,2]
[360946242,1747159893164,-6845.44,0.000128,2]
[360946243,1747159893175,-1005.3495311,0.000128,2]
[360946244,1747159893185,-482.0,0.0001283,2]
[360946245,1747159893195,-400.0,0.00012876,2]
[360946246,1747159893205,-2722.32,0.00012876,2]
[360946247,1747159893215,-151.0,0.00012876,2]
[360946248,1747159893228,-151.0,0.00012876,2]
[360946249,1747159893238,-916.93,0.00012876,2]
[360946250,1747159893249,-520.78,0.00012876,2]
[360946251,1747159893260,-506.41,0.00012876,2]
[360946252,1747159893269,-694.78,0.00012876,2]
[360946253,1747159893279,-400.0,0.00012876,2]
[360946254,1747159893290,-400.0,0.00012876,2]
[360946255,1747159893299,-400.0,0.00012876,2]
[360946256,1747159893309,-178.76685919,0.00012876,2]
[360946257,1747159893319,-372.59670099,0.00012876,2]
[360946258,1747159893329,-400.0,0.00012876,2]
[360946259,1747159893339,-626.45,0.00012876,2]
[360946260,1747159893348,-400.0,0.00012876,2]
[360946261,1747159893358,-626.11,0.00012876,2]
[360946262,1747159893368,-400.0,0.00012876,2]
[360946263,1747159893378,-400.0,0.00012876,2]
[360946264,1747159893388,-463.34,0.00012876,2]
[360946265,1747159893397,-488.25,0.00012876,2]
[360946266,1747159893406,-400.0,0.00012876,2]
[360946267,1747159893416,-472.45265597,0.00012876,2]
[360946268,1747159893425,-400.0,0.00012876,2]
[360946269,1747159893435,-400.0,0.00012876,2]
[360946270,1747159893444,-400.0,0.00012876,2]
[360946271,1747159893453,-657.34,0.00012876,2]
[360946272,1747159893463,-400.0,0.00012876,2]
[360946273,1747159893473,-441.68,0.00012876,2]
[360946274,1747159893484,-400.0,0.00012876,2]
[360946275,1747159893494,-645.08,0.00012876,2]
[360946276,1747159893505,-400.0,0.00012876,2]
[360946277,1747159893515,-530.14,0.00012876,2]
[360946278,1747159893525,-400.0,0.00012876,2]
[360946279,1747159893535,-400.0,0.00012876,2]
[360946280,1747159893545,-400.0,0.00012876,2]
[360946281,1747159893555,-400.0,0.00012876,2]
[360946282,1747159893565,-400.0,0.00012876,2]
[360946283,1747159893575,-852.22,0.00012876,2]
[360946284,1747159893585,-400.6647806,0.00012876,2]
[360946285,1747159893595,-400.0,0.00012876,2]
[360946286,1747159893605,-820.71,0.00012876,2]
[360946287,1747159893616,-400.0,0.00012876,2]
[360946288,1747159893626,-400.0,0.00012876,2]
[360946289,1747159893636,-400.0,0.00012876,2]
[360946290,1747159893646,-400.0,0.00012876,2]
[360946291,1747159893656,-400.0,0.00012876,2]
[360946292,1747159893666,-621.83,0.00012876,2]
[360946293,1747159893676,-400.0,0.00012876,2]
[360946294,1747159893686,-350.56797425,0.00012876,2]
[360946295,1747159893696,-400.0,0.00012876,2]
[360946296,1747159893706,-400.0,0.00012876,2]
[360946297,1747159893717,-478.47,0.00012876,2]
[360946298,1747159893727,-400.0,0.00012876,2]
[360946299,1747159893738,-404.78,0.00012876,2]
[360946300,1747159893748,-400.0,0.00012876,2]
[360946301,1747159893758,-400.0,0.00012876,2]
[360946302,1747159893769,-400.0,0.00012876,2]
[360946303,1747159893780,-400.0,0.00012876,2]
[360946304,1747159893792,-1162.05,0.00012876,2]
[360946305,1747159893802,-400.0,0.00012876,2]
[360946306,1747159893813,-1079.27,0.00012876,2]
[360946307,1747159893823,-577.59,0.00012876,2]
[360946308,1747159893833,-426.15,0.00012876,2]
[360946309,1747159893844,-400.0,0.00012876,2]
[360946310,1747159893854,-3487.68,0.00012876,2]
[360946311,1747159893864,-400.0,0.00012876,2]
[360946312,1747159893873,-400.0,0.00012876,2]
[360946313,1747159893884,-400.0,0.00012876,2]
[360946314,1747159893895,-292.82,0.00012876,2]
[360946315,1747159893905,-400.0,0.00012876,2]
[360946316,1747159893915,-1738.21,0.00012876,2]
[360946317,1747159893925,-459.19,0.00012876,2]
[360946318,1747159893935,-210.958419,0.00012876,2]
[360946319,1747159893946,-444.36,0.00012876,2]
[360946320,1747159893956,-400.0,0.00012876,2]
[360946321,1747159893966,-400.0,0.00012876,2]
[360946322,1747159893976,-615.27,0.00012876,2]
[360946323,1747159893985,-420.8,0.00012876,2]
[360946324,1747159893995,-400.0,0.00012876,2]
[360946325,1747159894006,-1176.5,0.00012876,2]
[360946326,1747159894016,-1437.22,0.00012876,2]
[360946327,1747159894027,-400.0,0.00012876,2]
[360946328,1747159894037,-652.56,0.00012876,2]
[360946329,1747159894047,-488.24,0.00012876,2]
[360946330,1747159894056,-400.0,0.00012876,2]
[360946331,1747159894065,-1273.02,0.00012876,2]
[360946332,1747159894076,-400.0,0.00012876,2]
[360946333,1747159894086,-400.0,0.00012876,2]
[360946334,1747159894096,-801.33,0.00012876,2]
[360946335,1747159894106,-400.0,0.00012876,2]
[360946336,1747159894115,-788.97,0.00012876,2]
[360946337,1747159894125,-414.37,0.00012876,2]
[360946338,1747159894134,-542.34,0.00012876,2]
[360946339,1747159894144,-449.97,0.00012876,2]
[360946340,1747159894154,-426.3,0.00012876,2]
[360946341,1747159894168,-400.0,0.00012876,2]
[360946342,1747159894178,-1871.8,0.00012876,2]
[360946343,1747159894188,-400.0,0.00012876,2]
[360946344,1747159894197,-475.68,0.00012876,2]
[360946345,1747159894207,-1359.59,0.00012876,2]
[360946346,1747159894217,-472.81,0.00012876,2]
[360946347,1747159894227,-400.0,0.00012876,2]
[360946348,1747159894238,-323.301614,0.00012876,2]
[360946349,1747159894249,-539.11,0.00012876,2]
[360946350,1747159894260,-323.301614,0.00012876,2]
[360946351,1747159894270,-400.0,0.00012876,2]
[360946352,1747159894279,-1207.49,0.00012876,2]
[360946353,1747159894289,-400.0,0.00012876,2]
[360946354,1747159894299,-400.0,0.00012876,2]
[360946355,1747159894309,-400.0,0.00012876,2]
[360946356,1747159894319,-422.63769423,0.00012876,2]
[360946357,1747159894328,-400.0,0.00012876,2]
[360946358,1747159894338,-426.356592,0.00012876,2]
[360946359,1747159894348,-1135.76,0.00012876,2]
[360946360,1747159894358,-1233.2,0.00012876,2]
[360946361,1747159894368,-657.57,0.00012876,2]
[360946362,1747159894377,-400.0,0.00012876,2]
[360946363,1747159894387,-726.64,0.00012876,2]
[360946364,1747159894397,-400.0,0.00012876,2]
[360946365,1747159894407,-1268.75,0.00012876,2]
[360946366,1747159894417,-529.97,0.00012876,2]
[360946367,1747159894427,-400.0,0.00012876,2]
[360946368,1747159894436,-400.0,0.00012876,2]
[360946369,1747159894446,-608.84,0.00012876,2]
[360946370,1747159894456,-400.0,0.00012876,2]
[360946371,1747159894466,-457.91,0.00012876,2]
[360946372,1747159894477,-7701.691241,0.00012876,2]
[360946373,1747159894487,-416.03,0.00012876,2]
[360946374,1747159894497,-995.85,0.00012876,2]
[360946375,1747159894506,-291.987093,0.00012876,2]
[360946376,1747159894516,-736.58,0.00012876,2]
[360946377,1747159894525,-400.0,0.00012876,2]
[360946378,1747159894536,-411.21,0.00012876,2]
[360946379,1747159894546,-151.0,0.00012876,2]
[360946380,1747159894555,-553.17,0.00012876,2]
[360946381,1747159894565,-2771.94,0.00012876,2]
[360946382,1747159894575,-400.0,0.00012876,2]
[360946383,1747159894585,-547.99,0.00012876,2]
[360946384,1747159894595,-2640.23,0.00012876,2]
[360946385,1747159894604,-400.0,0.00012876,2]
[360946386,1747159894615,-1191.42,0.00012876,2]
[360946387,1747159894625,-400.0,0.00012876,2]
[360946388,1747159894634,-1798.17,0.00012876,2]
[360946389,1747159894644,-400.0,0.00012876,2]
[360946390,1747159894655,-3074.15,0.00012876,2]
[360946391,1747159894666,-1043.95,0.00012876,2]
[360946392,1747159894676,-828.17,0.00012876,2]
[360946393,1747159894685,-1909.44,0.00012876,2]
[360946394,1747159894695,-2209.39,0.00012876,2]
[360946395,1747159894704,-2113.1,0.00012876,2]
[360946396,1747159894715,-1584.79,0.00012876,2]
[360946397,1747159894724,-894.32,0.00012876,2]
[360946398,1747159894735,-2266.23,0.00012876,2]
[360946399,1747159894745,-400.0,0.00012876,2]
[360946400,1747159894756,-403.62,0.00012876,2]
[360946401,1747159894766,-400.0,0.00012876,2]
[360946402,1747159894776,-400.0,0.00012876,2]
[360946403,1747159894786,-1157.78,0.00012876,2]
[360946404,1747159894796,-448.59,0.00012876,2]
[360946405,1747159894807,-2334.67,0.00012876,2]
[360946406,1747159894818,-2166.25,0.00012876,2]
[360946407,1747159894830,-3592.14,0.00012876,2]
[360946408,1747159894840,-414.75,0.00012876,2]
[360946409,1747159894850,-576.56,0.00012876,2]
[360946410,1747159894859,-400.0,0.00012876,2]
[360946411,1747159895070,-400.0,0.00012876,2]
[360946412,1747159895079,-400.0,0.00012876,2]
[360946413,1747159895089,-400.0,0.00012876,2]
[360946414,1747159895099,-529.13,0.00012876,2]
[360946415,1747159895108,-500.19,0.00012876,2]
[360946416,1747159895118,-1411.28,0.00012876,2]
[360946417,1747159895128,-400.0,0.00012876,2]
[360946418,1747159895140,-534.86,0.00012876,2]
[360946419,1747159895149,-445.9,0.00012876,2]
[360946420,1747159895161,-706.58,0.00012876,2]
[360946421,1747159895172,-1060.09,0.00012876,2]
[360946422,1747159895184,-440.85,0.00012876,2]
[360946423,1747159895195,-400.0,0.00012876,2]
[360946424,1747159895204,-782.86,0.00012876,2]
[360946425,1747159895214,-785.11,0.00012876,2]
[360946426,1747159895223,-508.12,0.00012876,2]
[360946427,1747159895234,-792.31,0.00012876,2]
[360946428,1747159895243,-507.26,0.00012876,2]
[360946429,1747159895253,-1373.03,0.00012876,2]
[360946430,1747159895263,-400.0,0.00012876,2]
[360946431,1747159895274,-439.37,0.00012876,2]
[360946432,1747159895283,-400.0,0.00012876,2]
[360946433,1747159895293,-835.87,0.00012876,2]
[360946434,1747159895303,-1203.29,0.00012876,2]
[360946435,1747159895312,-705.65,0.00012876,2]
[360946436,1747159895321,-871.93,0.00012876,2]
[360946437,1747159895331,-400.0,0.00012876,2]
[360946438,1747159895340,-400.0,0.00012876,2]
[360946439,1747159895349,-786.26,0.00012876,2]
[360946440,1747159895359,-801.16,0.00012876,2]
[360946441,1747159895368,-151.0,0.00012876,2]
[360946442,1747159895377,-243.651086,0.00012876,2]
[360946443,1747159895386,-1841.1,0.00012876,2]
[360946444,1747159895397,-522.01,0.00012876,2]
[360946445,1747159895406,-400.0,0.00012876,2]
[360946446,1747159895416,-952.91,0.00012876,2]
[360946447,1747159895426,-589.31,0.00012876,2]
[360946448,1747159895436,-440.12,0.00012876,2]
[360946449,1747159895446,-689.79,0.00012876,2]
[360946450,1747159895456,-1040.35,0.00012876,2]
[360946451,1747159895465,-400.0,0.00012876,2]
[360946452,1747159895476,-2832.85,0.00012876,2]
[360946453,1747159895487,-400.0,0.00012876,2]
[360946454,1747159895496,-400.0,0.00012876,2]
[360946455,1747159895507,-837.08,0.00012876,2]
[360946456,1747159895517,-418.45,0.00012876,2]
[360946457,1747159895527,-722.75,0.00012876,2]
[360946458,1747159895536,-400.0,0.00012876,2]
[360946459,1747159895546,-1518.61,0.00012876,2]
[360946460,1747159895555,-538.57,0.00012876,2]
[360946461,1747159895565,-2035.72,0.00012876,2]
[360946462,1747159895575,-452.37,0.00012876,2]
[360946463,1747159895584,-400.0,0.00012876,2]
[360946464,1747159895593,-504.22,0.00012876,2]
[360946465,1747159895603,-699.02,0.00012876,2]
[360946466,1747159895612,-1636.63,0.00012876,2]
[360946467,1747159895621,-494.98,0.00012876,2]
[360946468,1747159895631,-1883.29,0.00012876,2]
[360946469,1747159895640,-151.0,0.00012876,2]
[360946470,1747159895649,-610.23,0.00012876,2]
[360946471,1747159895659,-768.25,0.00012876,2]
[360946472,1747159895668,-768.75,0.00012876,2]
[360946473,1747159895678,-1014.11,0.00012876,2]
[360946474,1747159895688,-620.02,0.00012876,2]
[360946475,1747159895697,-1271.95,0.00012876,2]
[360946476,1747159895706,-400.0,0.00012876,2]
[360946477,1747159895715,-400.0,0.00012876,2]
[360946478,1747159895724,-756.59,0.00012876,2]
[360946479,1747159895736,-400.0,0.00012876,2]
[360946480,1747159895746,-400.0,0.00012876,2]
[360946481,1747159895756,-935.97,0.00012876,2]
[360946482,1747159895766,-1412.1,0.00012876,2]
[360946483,1747159895776,-539.94,0.00012876,2]
[360946484,1747159895785,-1632.7,0.00012876,2]
[360946485,1747159895795,-400.0,0.00012876,2]
[360946486,1747159895804,-871.79,0.00012876,2]
[360946487,1747159895814,-451.47,0.00012876,2]
[360946488,1747159895823,-400.0,0.00012876,2]
[360946489,1747159895832,-560.27,0.00012876,2]
[360946490,1747159895842,-400.0,0.00012876,2]
[360946491,1747159895852,-2068.68,0.00012876,2]
[360946492,1747159895862,-570.27,0.00012876,2]
[360946493,1747159895871,-967.47,0.00012876,2]
[360946494,1747159895881,-400.0,0.00012876,2]
[360946495,1747159895891,-669.93,0.00012876,2]
[360946496,1747159895901,-1036.32,0.00012876,2]
[360946497,1747159895911,-444.85,0.00012876,2]
[360946498,1747159895920,-400.0,0.00012876,2]
[360946499,1747159895930,-680.61,0.00012876,2]
[360946500,1747159895939,-4665.34,0.00012876,2]
[360946501,1747159895949,-400.0,0.00012876,2]
[360946502,1747159895958,-1314.16,0.00012876,2]
[360946503,1747159895968,-4183.88,0.00012876,2]
[360946504,1747159895977,-400.0,0.00012876,2]
[360946505,1747159895986,-547.25,0.00012876,2]
[360946506,1747159895996,-400.0,0.00012876,2]
[360946507,1747159896006,-579.54,0.00012876,2]
[360946508,1747159896015,-786.38,0.00012876,2]
[360946509,1747159896024,-2046.23,0.00012876,2]
[360946510,1747159896034,-1255.33,0.00012876,2]
[360946511,1747159896043,-577.34,0.00012876,2]
[360946512,1747159896052,-9519.31,0.00012876,2]
[360946513,1747159896061,-834.73,0.00012876,2]
[360946514,1747159896070,-400.0,0.00012876,2]
[360946515,1747159896080,-1346.7,0.00012876,2]
[360946516,1747159896089,-400.0,0.00012876,2]
[360946517,1747159896098,-2754.3,0.00012876,2]
[360946518,1747159896107,-10256.28,0.00012876,2]
[360946519,1747159896117,-400.0,0.00012876,2]
[360946520,1747159896126,-487.25,0.00012876,2]
[360946521,1747159896135,-400.0,0.00012876,2]
[360946522,1747159896145,-400.0,0.00012876,2]
[360946523,1747159896155,-2145.85,0.00012876,2]
[360946524,1747159896167,-778.75,0.00012876,2]
[360946525,1747159896176,-1086.29,0.00012876,2]
[360946526,1747159896186,-712.61,0.00012876,2]
[360946527,1747159896196,-400.0,0.00012876,2]
[360946528,1747159896206,-1146.85,0.00012876,2]
[360946529,1747159896217,-400.0,0.00012876,2]
[360946530,1747159896226,-427.04,0.00012876,2]
[360946531,1747159896237,-1787.73,0.00012876,2]
[360946532,1747159896247,-587.09,0.00012876,2]
[360946533,1747159896258,-400.0,0.00012876,2]
[360946534,1747159896267,-2676.84,0.00012876,2]
[360946535,1747159896276,-936.8,0.00012876,2]
[360946536,1747159896286,-538.65,0.00012876,2]
[360946537,1747159896295,-570.54,0.00012876,2]
[360946538,1747159896305,-671.91,0.00012876,2]
[360946539,1747159896315,-400.0,0.00012876,2]
[360946540,1747159896325,-1004.59,0.00012876,2]
[360946541,1747159896335,-583.74,0.00012876,2]
[360946542,1747159896346,-400.0,0.00012876,2]
[360946543,1747159896355,-628.15,0.00012876,2]
[360946544,1747159896366,-409.42,0.00012876,2]
[360946545,1747159896377,-10626.02,0.00012876,2]
[360946546,1747159896386,-400.0,0.00012876,2]
[360946547,1747159896396,-515.12,0.00012876,2]
[360946548,1747159896406,-6049.69,0.00012876,2]
[360946549,1747159896415,-1033.11,0.00012876,2]
[360946550,1747159896425,-400.0,0.00012876,2]
[360946551,1747159896434,-437.19,0.00012876,2]
[360946552,1747159896444,-569.55,0.00012876,2]
[360946553,1747159896453,-467.47,0.00012876,2]
[360946554,1747159896462,-2264.96,0.00012876,2]
[360946555,1747159896472,-795.31,0.00012876,2]
[360946556,1747159896482,-405.13,0.00012876,2]
[360946557,1747159896491,-1277.12,0.00012876,2]
[360946558,1747159896500,-400.0,0.00012876,2]
[360946559,1747159896510,-400.0,0.00012876,2]
[360946560,1747159896519,-10483.18,0.00012876,2]
[360946561,1747159896529,-400.0,0.00012876,2]
[360946562,1747159896539,-1585.22,0.00012876,2]
[360946563,1747159896548,-843.23,0.00012876,2]